[Event "Late-Titled-Tuesday-Blitz-August-29-2023"]
[Site "Chess.com"]
[Date "2023.08.29"]
[Round "6"]
[White "Eternauta2400"]
[Black "SHIVACalypso"]
[Result "1-0"]
[WhiteElo "2843"]
[BlackElo "2523"]
[TimeControl "180+1"]
[EndTime "15:01:06 PDT"]
[Termination "Eternauta2400 won by resignation"]

1. c4 {[%clk 0:03:00.9]} 1... e5 {[%clk 0:02:57.5]} 2. Nc3 {[%clk 0:03:01.1]}
2... Nc6 {[%clk 0:02:55.8]} 3. Nf3 {[%clk 0:03:01.3]} 3... Bc5 {[%clk
0:02:54.6]} 4. Nxe5 {[%clk 0:03:01.2]} 4... Nxe5 {[%clk 0:02:52.7]} 5. d4 {[%clk
0:03:01.4]} 5... Bb4 {[%clk 0:02:31.5]} 6. dxe5 {[%clk 0:03:00.8]} 6... Bxc3+
{[%clk 0:02:32.2]} 7. bxc3 {[%clk 0:03:00.2]} 7... Qe7 {[%clk 0:02:29.1]} 8. Qd4
{[%clk 0:02:58.4]} 8... Nh6 {[%clk 0:02:26.5]} 9. Bxh6 {[%clk 0:02:54.3]} 9...
gxh6 {[%clk 0:02:26.1]} 10. g3 {[%clk 0:02:51.6]} 10... Rg8 {[%clk 0:02:23.7]}
11. Bg2 {[%clk 0:02:50.2]} 11... d6 {[%clk 0:02:20.4]} 12. exd6 {[%clk
0:02:50.5]} 12... cxd6 {[%clk 0:02:21.3]} 13. O-O {[%clk 0:02:50]} 13... Be6
{[%clk 0:02:18.8]} 14. Rab1 {[%clk 0:02:49.6]} 14... Rb8 {[%clk 0:02:14.5]} 15.
Qxa7 {[%clk 0:02:48.5]} 15... Qc7 {[%clk 0:02:14.1]} 16. Rxb7 {[%clk 0:02:03.6]}
16... Rxb7 {[%clk 0:02:08.4]} 17. Qxb7 {[%clk 0:02:02]} 17... Qxb7 {[%clk
0:02:08.5]} 18. Bxb7 {[%clk 0:02:02.6]} 18... Bxc4 {[%clk 0:02:09.1]} 19. a4
{[%clk 0:02:00.1]} 19... Kd7 {[%clk 0:02:06.3]} 20. Bf3 {[%clk 0:01:57.5]} 20...
Ra8 {[%clk 0:02:04.4]} 21. Bxa8 {[%clk 0:01:56.8]} 1-0

[Event "Late-Titled-Tuesday-Blitz-August-29-2023"]
[Site "Chess.com"]
[Date "2023.08.29"]
[Round "6"]
[White "Rutricks"]
[Black "superfast64"]
[Result "1-0"]
[WhiteElo "2626"]
[BlackElo "2466"]
[TimeControl "180+1"]
[EndTime "15:01:22 PDT"]
[Termination "Rutricks won by resignation"]

1. Nf3 {[%clk 0:03:00.9]} 1... c6 {[%clk 0:02:53.7]} 2. b3 {[%clk 0:03:00.5]}
2... d5 {[%clk 0:02:54]} 3. Bb2 {[%clk 0:03:01.3]} 3... Bf5 {[%clk 0:02:54.3]}
4. e3 {[%clk 0:03:02]} 4... e6 {[%clk 0:02:54.8]} 5. Be2 {[%clk 0:03:02.7]} 5...
Nd7 {[%clk 0:02:55.2]} 6. O-O {[%clk 0:03:03.4]} 6... Ngf6 {[%clk 0:02:55.8]} 7.
c4 {[%clk 0:03:04]} 7... Bd6 {[%clk 0:02:56.4]} 8. Nc3 {[%clk 0:03:04.7]} 8...
Qe7 {[%clk 0:02:56.8]} 9. Rc1 {[%clk 0:03:05.2]} 9... Ba3 {[%clk 0:02:56.2]} 10.
Bxa3 {[%clk 0:03:05.9]} 10... Qxa3 {[%clk 0:02:56.8]} 11. d3 {[%clk 0:03:06.6]}
11... h6 {[%clk 0:02:56.1]} 12. h3 {[%clk 0:03:07.2]} 12... a6 {[%clk
0:02:50.9]} 13. Qd2 {[%clk 0:03:07.8]} 13... Qd6 {[%clk 0:02:50.4]} 14. Qc2
{[%clk 0:03:06.7]} 14... e5 {[%clk 0:02:49.1]} 15. e4 {[%clk 0:03:06.9]} 15...
dxe4 {[%clk 0:02:49.5]} 16. dxe4 {[%clk 0:03:07.5]} 16... Bh7 {[%clk 0:02:49.2]}
17. Na4 {[%clk 0:03:08.1]} 17... Nxe4 {[%clk 0:02:34.9]} 18. Bd3 {[%clk
0:03:06.5]} 18... Ndc5 {[%clk 0:02:34.9]} 19. Nxc5 {[%clk 0:03:04.9]} 19... Nxc5
{[%clk 0:02:31.7]} 20. Bxh7 {[%clk 0:03:05.8]} 20... g6 {[%clk 0:02:32.1]} 21.
Rcd1 {[%clk 0:02:51.2]} 21... Qf6 {[%clk 0:02:23.1]} 22. Bxg6 {[%clk 0:02:37]}
22... fxg6 {[%clk 0:02:24]} 23. Nxe5 {[%clk 0:02:37.1]} 23... g5 {[%clk
0:02:13.4]} 24. Rfe1 {[%clk 0:02:15.3]} 24... O-O {[%clk 0:02:11.9]} 25. b4
{[%clk 0:02:10.1]} 25... Na4 {[%clk 0:02:02.7]} 26. Ng4 {[%clk 0:01:59.9]} 1-0

[Event "Late-Titled-Tuesday-Blitz-August-29-2023"]
[Site "Chess.com"]
[Date "2023.08.29"]
[Round "6"]
[White "GMBenjaminBok"]
[Black "Druid24"]
[Result "1-0"]
[WhiteElo "2916"]
[BlackElo "2669"]
[TimeControl "180+1"]
[EndTime "15:02:15 PDT"]
[Termination "GMBenjaminBok won by resignation"]

1. d4 {[%clk 0:03:00.9]} 1... Nf6 {[%clk 0:03:00.1]} 2. c4 {[%clk 0:03:01.3]}
2... g6 {[%clk 0:03:00]} 3. g3 {[%clk 0:03:00.9]} 3... Bg7 {[%clk 0:03:00.6]} 4.
Bg2 {[%clk 0:03:01.6]} 4... O-O {[%clk 0:03:01]} 5. Nc3 {[%clk 0:03:02.3]} 5...
d6 {[%clk 0:03:01.9]} 6. Nf3 {[%clk 0:03:03]} 6... c6 {[%clk 0:03:02.6]} 7. e4
{[%clk 0:03:02]} 7... Bg4 {[%clk 0:03:00.6]} 8. O-O {[%clk 0:03:01.9]} 8... Na6
{[%clk 0:03:00.3]} 9. h3 {[%clk 0:03:01.4]} 9... Bxf3 {[%clk 0:03:00.3]} 10.
Bxf3 {[%clk 0:03:01.7]} 10... e5 {[%clk 0:03:01.2]} 11. d5 {[%clk 0:03:01.5]}
11... c5 {[%clk 0:02:47.2]} 12. h4 {[%clk 0:02:58.9]} 12... Nc7 {[%clk
0:02:46.1]} 13. h5 {[%clk 0:02:56.1]} 13... a6 {[%clk 0:02:40.6]} 14. a4 {[%clk
0:02:54.2]} 14... Rb8 {[%clk 0:02:39.9]} 15. a5 {[%clk 0:02:52.6]} 15... Nfe8
{[%clk 0:02:28.3]} 16. Kg2 {[%clk 0:02:49.3]} 16... f5 {[%clk 0:02:28.1]} 17.
hxg6 {[%clk 0:02:48.8]} 17... hxg6 {[%clk 0:02:29]} 18. Rh1 {[%clk 0:02:48.5]}
18... f4 {[%clk 0:02:29.2]} 19. Bg4 {[%clk 0:02:46.2]} 19... Nf6 {[%clk
0:02:28.8]} 20. gxf4 {[%clk 0:02:39]} 20... exf4 {[%clk 0:02:29.3]} 21. Qf3
{[%clk 0:02:33.7]} 21... Nxg4 {[%clk 0:02:22.9]} 22. Qxg4 {[%clk 0:02:34.6]}
22... Qf6 {[%clk 0:02:23.2]} 23. Rh3 {[%clk 0:02:24]} 23... Rbe8 {[%clk
0:02:20]} 24. Ra3 {[%clk 0:02:18.7]} 24... Re5 {[%clk 0:02:19.4]} 25. Kf1 {[%clk
0:02:15.1]} 25... Rg5 {[%clk 0:02:16.2]} 26. Qd7 {[%clk 0:01:36.1]} 26... Rf7
{[%clk 0:02:15.5]} 27. Qc8+ {[%clk 0:01:35.8]} 27... Bf8 {[%clk 0:02:15.2]} 28.
Ne2 {[%clk 0:01:32.2]} 28... f3 {[%clk 0:02:10.9]} 29. Raxf3 {[%clk 0:01:28.5]}
1-0

[Event "Late-Titled-Tuesday-Blitz-August-29-2023"]
[Site "Chess.com"]
[Date "2023.08.29"]
[Round "6"]
[White "Ali_rastbod"]
[Black "Der_Honigdachs"]
[Result "0-1"]
[WhiteElo "2665"]
[BlackElo "2526"]
[TimeControl "180+1"]
[EndTime "15:02:41 PDT"]
[Termination "Der_Honigdachs won by resignation"]

1. d4 {[%clk 0:03:00.9]} 1... Nf6 {[%clk 0:02:56.8]} 2. Nf3 {[%clk 0:03:01.3]}
2... e6 {[%clk 0:02:54.8]} 3. c3 {[%clk 0:02:58.9]} 3... b6 {[%clk 0:02:51.2]}
4. h3 {[%clk 0:02:56.5]} 4... Bb7 {[%clk 0:02:51.5]} 5. Bf4 {[%clk 0:02:55.1]}
5... Be7 {[%clk 0:02:44.5]} 6. e3 {[%clk 0:02:54.5]} 6... O-O {[%clk 0:02:43.6]}
7. Nbd2 {[%clk 0:02:53.5]} 7... d5 {[%clk 0:02:41.6]} 8. Bd3 {[%clk 0:02:49.4]}
8... c5 {[%clk 0:02:38.3]} 9. Qe2 {[%clk 0:02:46.8]} 9... Ne4 {[%clk 0:02:37.5]}
10. O-O {[%clk 0:02:44.5]} 10... Nd7 {[%clk 0:02:33.5]} 11. Ne5 {[%clk
0:02:40.1]} 11... Nxe5 {[%clk 0:02:29.1]} 12. dxe5 {[%clk 0:02:39.5]} 12... Nxd2
{[%clk 0:02:25.2]} 13. Qxd2 {[%clk 0:02:39.2]} 13... f5 {[%clk 0:02:11.4]} 14.
exf6 {[%clk 0:02:31.3]} 14... Bxf6 {[%clk 0:02:11.3]} 15. Qc2 {[%clk 0:02:30.8]}
15... h6 {[%clk 0:02:11.1]} 16. Rad1 {[%clk 0:02:25.1]} 16... e5 {[%clk
0:02:09.4]} 17. Bg3 {[%clk 0:02:21.7]} 17... Qe7 {[%clk 0:02:09.6]} 18. c4
{[%clk 0:02:19.1]} 18... e4 {[%clk 0:02:03.3]} 19. Be2 {[%clk 0:02:15.2]} 19...
d4 {[%clk 0:02:03.7]} 20. Bg4 {[%clk 0:02:09.9]} 20... Be5 {[%clk 0:01:41]} 21.
Bxe5 {[%clk 0:01:59.7]} 21... Qxe5 {[%clk 0:01:41.9]} 22. a3 {[%clk 0:01:38.8]}
22... Rad8 {[%clk 0:01:39.7]} 23. b4 {[%clk 0:01:37.9]} 23... h5 {[%clk
0:01:37.9]} 24. exd4 {[%clk 0:01:30.4]} 24... cxd4 {[%clk 0:01:35.4]} 25. Be2
{[%clk 0:01:31]} 25... d3 {[%clk 0:01:33.9]} 26. Bxd3 {[%clk 0:01:27.4]} 26...
exd3 {[%clk 0:01:34.6]} 27. Rxd3 {[%clk 0:01:28.2]} 27... Qe4 {[%clk 0:01:34.2]}
0-1

[Event "Late-Titled-Tuesday-Blitz-August-29-2023"]
[Site "Chess.com"]
[Date "2023.08.29"]
[Round "6"]
[White "ferrufino64"]
[Black "garfield_pg"]
[Result "0-1"]
[WhiteElo "2124"]
[BlackElo "2395"]
[TimeControl "180+1"]
[EndTime "15:02:48 PDT"]
[Termination "garfield_pg won by checkmate"]

1. e4 {[%clk 0:03:00.4]} 1... c5 {[%clk 0:03:00]} 2. Nf3 {[%clk 0:03:00.8]} 2...
Nc6 {[%clk 0:03:00.2]} 3. d4 {[%clk 0:03:01.2]} 3... cxd4 {[%clk 0:03:01.1]} 4.
Nxd4 {[%clk 0:03:02]} 4... g6 {[%clk 0:03:01.7]} 5. c4 {[%clk 0:03:01.7]} 5...
Nf6 {[%clk 0:03:02.3]} 6. Nc3 {[%clk 0:03:01.6]} 6... d6 {[%clk 0:03:02.9]} 7.
Be2 {[%clk 0:03:02.1]} 7... Nxd4 {[%clk 0:03:03.2]} 8. Qxd4 {[%clk 0:03:01.9]}
8... Bg7 {[%clk 0:03:03.9]} 9. Be3 {[%clk 0:03:02.6]} 9... O-O {[%clk
0:03:04.4]} 10. Qd2 {[%clk 0:03:03.3]} 10... a5 {[%clk 0:03:04.5]} 11. O-O
{[%clk 0:03:03.4]} 11... a4 {[%clk 0:03:04.6]} 12. Kh1 {[%clk 0:03:02.8]} 12...
Qa5 {[%clk 0:03:01.6]} 13. f4 {[%clk 0:02:59.4]} 13... Be6 {[%clk 0:03:02]} 14.
Rac1 {[%clk 0:02:33.4]} 14... Rfc8 {[%clk 0:02:59.3]} 15. b3 {[%clk 0:02:33.4]}
15... axb3 {[%clk 0:02:53.4]} 16. axb3 {[%clk 0:02:34.3]} 16... Qb4 {[%clk
0:02:51.8]} 17. Nd5 {[%clk 0:02:15]} 17... Qxd2 {[%clk 0:02:46.8]} 18. Nxf6+
{[%clk 0:02:15]} 18... Bxf6 {[%clk 0:02:46.2]} 19. Bxd2 {[%clk 0:02:15.6]} 19...
Ra2 {[%clk 0:02:43.2]} 20. Rfd1 {[%clk 0:02:15.4]} 20... Rca8 {[%clk 0:02:39.5]}
21. Kg1 {[%clk 0:02:09.8]} 21... Rb2 {[%clk 0:02:38.4]} 22. Rb1 {[%clk
0:02:10.1]} 22... Rxb1 {[%clk 0:02:38.6]} 23. Rxb1 {[%clk 0:02:11]} 23... Ra2
{[%clk 0:02:38.4]} 24. Rd1 {[%clk 0:02:09.7]} 24... Rb2 {[%clk 0:02:38.8]} 25.
b4 {[%clk 0:02:09.1]} 25... Bd4+ {[%clk 0:01:57.4]} 26. Kf1 {[%clk 0:02:07.3]}
26... f5 {[%clk 0:01:57.8]} 27. exf5 {[%clk 0:01:56.5]} 27... Bxf5 {[%clk
0:01:53.8]} 28. Be1 {[%clk 0:01:56.9]} 28... Be3 {[%clk 0:01:41.1]} 29. Bf3
{[%clk 0:01:53.3]} 29... b6 {[%clk 0:01:35.2]} 30. Bd5+ {[%clk 0:01:49.2]} 30...
Kf8 {[%clk 0:01:32.5]} 31. Ra1 {[%clk 0:01:43.7]} 31... Bd3# {[%clk 0:01:00.7]}
0-1

[Event "Late-Titled-Tuesday-Blitz-August-29-2023"]
[Site "Chess.com"]
[Date "2023.08.29"]
[Round "6"]
[White "AvitalBor"]
[Black "JSlaby"]
[Result "1-0"]
[WhiteElo "2754"]
[BlackElo "2520"]
[TimeControl "180+1"]
[EndTime "15:03:00 PDT"]
[Termination "AvitalBor won by resignation"]

1. e4 {[%clk 0:02:56]} 1... c5 {[%clk 0:02:45.8]} 2. Nc3 {[%clk 0:02:55.6]} 2...
Nc6 {[%clk 0:02:44.7]} 3. g3 {[%clk 0:02:55.9]} 3... g6 {[%clk 0:02:44.6]} 4.
Bg2 {[%clk 0:02:56.3]} 4... Bg7 {[%clk 0:02:45]} 5. f4 {[%clk 0:02:57]} 5... e6
{[%clk 0:02:45.4]} 6. Nf3 {[%clk 0:02:57.3]} 6... Nge7 {[%clk 0:02:45.6]} 7. O-O
{[%clk 0:02:56.7]} 7... O-O {[%clk 0:02:45.1]} 8. e5 {[%clk 0:02:57.1]} 8... d6
{[%clk 0:02:37.3]} 9. exd6 {[%clk 0:02:57.4]} 9... Nf5 {[%clk 0:02:37.3]} 10. d3
{[%clk 0:02:53.2]} 10... Qxd6 {[%clk 0:02:34.5]} 11. Ne4 {[%clk 0:02:52.8]}
11... Qe7 {[%clk 0:02:33.6]} 12. c3 {[%clk 0:02:42.4]} 12... Rd8 {[%clk
0:02:30]} 13. Qe2 {[%clk 0:02:39.9]} 13... b6 {[%clk 0:02:29.6]} 14. Ne5 {[%clk
0:02:34.3]} 14... Nxe5 {[%clk 0:02:10.1]} 15. fxe5 {[%clk 0:02:35.2]} 15... Bb7
{[%clk 0:01:52.2]} 16. Bg5 {[%clk 0:02:33]} 16... Qc7 {[%clk 0:01:47.6]} 17.
Bxd8 {[%clk 0:02:29.9]} 17... Rxd8 {[%clk 0:01:48.5]} 18. Nf6+ {[%clk
0:02:29.2]} 18... Kh8 {[%clk 0:01:39.5]} 19. Bxb7 {[%clk 0:02:27.1]} 19... Qxb7
{[%clk 0:01:38.3]} 20. Rf3 {[%clk 0:02:19.4]} 20... b5 {[%clk 0:01:31.5]} 21.
Raf1 {[%clk 0:02:16.5]} 21... b4 {[%clk 0:01:31.1]} 22. g4 {[%clk 0:02:15.4]}
22... Nh4 {[%clk 0:01:22.1]} 23. Rh3 {[%clk 0:02:14.1]} 23... g5 {[%clk
0:01:22.5]} 24. Qe4 {[%clk 0:02:13.6]} 24... Qxe4 {[%clk 0:01:14.3]} 25. Nxe4
{[%clk 0:02:14.5]} 25... h6 {[%clk 0:00:57.7]} 26. Rxf7 {[%clk 0:02:09.8]} 26...
bxc3 {[%clk 0:00:55.5]} 27. bxc3 {[%clk 0:02:09.8]} 27... Bxe5 {[%clk
0:00:55.2]} 28. Nf6 {[%clk 0:02:09.3]} 28... Bxf6 {[%clk 0:00:51.4]} 29. Rxf6
{[%clk 0:02:10.2]} 29... Kg7 {[%clk 0:00:48.7]} 30. Rxe6 {[%clk 0:02:10.3]}
30... Rb8 {[%clk 0:00:47.1]} 31. Re7+ {[%clk 0:02:06.3]} 31... Kf6 {[%clk
0:00:37.3]} 32. Rhe3 {[%clk 0:02:05.8]} 32... Rb1+ {[%clk 0:00:32.7]} 33. Kf2
{[%clk 0:02:05.7]} 33... Rb2+ {[%clk 0:00:32.7]} 1-0

[Event "Late-Titled-Tuesday-Blitz-August-29-2023"]
[Site "Chess.com"]
[Date "2023.08.29"]
[Round "6"]
[White "WPWPWP-2015"]
[Black "ilya2700"]
[Result "0-1"]
[WhiteElo "2561"]
[BlackElo "2138"]
[TimeControl "180+1"]
[EndTime "15:03:04 PDT"]
[Termination "ilya2700 won by checkmate"]

1. d4 {[%clk 0:03:00.9]} 1... d5 {[%clk 0:02:58.4]} 2. c4 {[%clk 0:03:00.8]}
2... c6 {[%clk 0:02:58.8]} 3. Nf3 {[%clk 0:03:00.6]} 3... Nf6 {[%clk 0:02:59.4]}
4. Nc3 {[%clk 0:03:00.3]} 4... e6 {[%clk 0:02:59.4]} 5. g3 {[%clk 0:02:58.9]}
5... dxc4 {[%clk 0:02:58.2]} 6. e4 {[%clk 0:02:58.3]} 6... b5 {[%clk 0:02:53.9]}
7. e5 {[%clk 0:02:57.7]} 7... Nd5 {[%clk 0:02:53.9]} 8. Bg2 {[%clk 0:02:57.2]}
8... Bb7 {[%clk 0:02:50.4]} 9. O-O {[%clk 0:02:56.1]} 9... Nd7 {[%clk
0:02:50.5]} 10. a4 {[%clk 0:02:53.3]} 10... a6 {[%clk 0:02:49.2]} 11. Re1 {[%clk
0:02:51.4]} 11... Be7 {[%clk 0:02:39.5]} 12. Ne4 {[%clk 0:02:50.8]} 12... Qb6
{[%clk 0:02:34.8]} 13. a5 {[%clk 0:02:47.7]} 13... Qc7 {[%clk 0:02:33.8]} 14.
Bd2 {[%clk 0:02:46.3]} 14... c5 {[%clk 0:02:30.6]} 15. dxc5 {[%clk 0:02:27.5]}
15... Nxc5 {[%clk 0:02:30.5]} 16. Nxc5 {[%clk 0:02:21.3]} 16... Bxc5 {[%clk
0:02:29.4]} 17. Ng5 {[%clk 0:02:20.3]} 17... O-O-O {[%clk 0:02:13.9]} 18. Rc1
{[%clk 0:02:10.7]} 18... Nb4 {[%clk 0:02:06.1]} 19. Bxb7+ {[%clk 0:02:03]} 19...
Qxb7 {[%clk 0:02:06.1]} 20. Ne4 {[%clk 0:02:02.2]} 20... Qd5 {[%clk 0:01:37.2]}
21. Qf3 {[%clk 0:01:10.3]} 21... Nd3 {[%clk 0:01:30.3]} 22. Qxf7 {[%clk
0:01:08.2]} 22... Rhf8 {[%clk 0:01:22.8]} 23. Qxg7 {[%clk 0:01:00]} 23... Nxf2
{[%clk 0:01:22.5]} 24. Nxc5 {[%clk 0:00:54]} 24... Nh3# {[%clk 0:01:17]} 0-1

[Event "Late-Titled-Tuesday-Blitz-August-29-2023"]
[Site "Chess.com"]
[Date "2023.08.29"]
[Round "6"]
[White "JoshuaGK27"]
[Black "HalfIsCrayfish"]
[Result "1-0"]
[WhiteElo "2414"]
[BlackElo "2515"]
[TimeControl "180+1"]
[EndTime "15:03:36 PDT"]
[Termination "JoshuaGK27 won by resignation"]

1. Nf3 {[%clk 0:03:00.9]} 1... d5 {[%clk 0:02:59.7]} 2. b3 {[%clk 0:03:00.2]}
2... c6 {[%clk 0:02:56.5]} 3. Bb2 {[%clk 0:03:00.5]} 3... Bf5 {[%clk 0:02:55.4]}
4. g3 {[%clk 0:02:58.9]} 4... Nf6 {[%clk 0:02:55.1]} 5. Bg2 {[%clk 0:02:58.4]}
5... h6 {[%clk 0:02:55]} 6. O-O {[%clk 0:02:57.3]} 6... e6 {[%clk 0:02:55.3]} 7.
d3 {[%clk 0:02:57.8]} 7... Bh7 {[%clk 0:02:54.4]} 8. Nbd2 {[%clk 0:02:56.2]}
8... Be7 {[%clk 0:02:54.7]} 9. c4 {[%clk 0:02:55.8]} 9... O-O {[%clk 0:02:54.7]}
10. a3 {[%clk 0:02:55.3]} 10... a5 {[%clk 0:02:52.5]} 11. Ra2 {[%clk 0:02:55.1]}
11... Na6 {[%clk 0:02:48.2]} 12. Qa1 {[%clk 0:02:54.6]} 12... b5 {[%clk
0:02:40.3]} 13. Ne5 {[%clk 0:02:52]} 13... Qb6 {[%clk 0:02:34.3]} 14. e4 {[%clk
0:02:25.5]} 14... dxe4 {[%clk 0:02:22.4]} 15. Nxe4 {[%clk 0:02:25.2]} 15... Rfd8
{[%clk 0:02:17.8]} 16. Nxf6+ {[%clk 0:02:08.6]} 16... Bxf6 {[%clk 0:02:12.6]}
17. Nxc6 {[%clk 0:02:07.1]} 17... Bxb2 {[%clk 0:01:58.7]} 18. Qxb2 {[%clk
0:02:07.1]} 18... Bxd3 {[%clk 0:01:27.7]} 19. Rd1 {[%clk 0:01:36]} 19... bxc4
{[%clk 0:01:19.8]} 20. bxc4 {[%clk 0:01:33.8]} 20... Qxb2 {[%clk 0:01:14.3]} 21.
Rxb2 {[%clk 0:01:34.7]} 21... Nc5 {[%clk 0:01:10.6]} 22. Rb5 {[%clk 0:01:22.4]}
22... Bxc4 {[%clk 0:00:53.7]} 23. Nxd8 {[%clk 0:00:59.1]} 23... Bxb5 {[%clk
0:00:39]} 24. Bxa8 {[%clk 0:00:57.8]} 1-0

[Event "Late-Titled-Tuesday-Blitz-August-29-2023"]
[Site "Chess.com"]
[Date "2023.08.29"]
[Round "6"]
[White "LeninGuerra"]
[Black "Fandorine"]
[Result "0-1"]
[WhiteElo "2552"]
[BlackElo "2919"]
[TimeControl "180+1"]
[EndTime "15:03:37 PDT"]
[Termination "Fandorine won by checkmate"]

1. e4 {[%clk 0:03:00.9]} 1... c5 {[%clk 0:02:58.1]} 2. Nf3 {[%clk 0:03:00.5]}
2... e6 {[%clk 0:02:58.5]} 3. d4 {[%clk 0:02:59.6]} 3... cxd4 {[%clk 0:02:59.1]}
4. Nxd4 {[%clk 0:03:00.3]} 4... Nc6 {[%clk 0:02:59.3]} 5. Nc3 {[%clk 0:02:58.7]}
5... Qc7 {[%clk 0:02:59.4]} 6. Be3 {[%clk 0:02:55]} 6... a6 {[%clk 0:02:58.7]}
7. Qf3 {[%clk 0:02:46.9]} 7... h5 {[%clk 0:02:58.7]} 8. Nxc6 {[%clk 0:02:41.8]}
8... bxc6 {[%clk 0:02:56]} 9. Qg3 {[%clk 0:02:23.1]} 9... e5 {[%clk 0:02:52.5]}
10. Bc4 {[%clk 0:02:20.4]} 10... h4 {[%clk 0:02:43.6]} 11. Qf3 {[%clk
0:02:18.9]} 11... Nf6 {[%clk 0:02:44.2]} 12. h3 {[%clk 0:02:17.4]} 12... Rb8
{[%clk 0:02:28.9]} 13. Bb3 {[%clk 0:02:13.4]} 13... d6 {[%clk 0:02:15.8]} 14.
O-O {[%clk 0:02:10.5]} 14... Be6 {[%clk 0:02:12.8]} 15. Rfd1 {[%clk 0:02:01.7]}
15... Be7 {[%clk 0:02:06.2]} 16. Bg5 {[%clk 0:01:57.4]} 16... Rd8 {[%clk
0:01:53.8]} 17. Bxe6 {[%clk 0:01:53.4]} 17... fxe6 {[%clk 0:01:53.7]} 18. Bxf6
{[%clk 0:01:53.6]} 18... Bxf6 {[%clk 0:01:51.3]} 19. Qg4 {[%clk 0:01:53.3]}
19... Qf7 {[%clk 0:01:37.2]} 20. Qe2 {[%clk 0:01:47.8]} 20... Qb7 {[%clk
0:01:37]} 21. b3 {[%clk 0:01:42]} 21... O-O {[%clk 0:01:36.8]} 22. Qc4 {[%clk
0:01:38.1]} 22... d5 {[%clk 0:01:35.1]} 23. Qe2 {[%clk 0:01:37.8]} 23... Qa7
{[%clk 0:01:27.1]} 24. Na4 {[%clk 0:01:34.1]} 24... Bg5 {[%clk 0:01:25.5]} 25.
c4 {[%clk 0:01:26.1]} 25... Rxf2 {[%clk 0:01:24.2]} 26. Qh5 {[%clk 0:01:07.3]}
26... Qe3 {[%clk 0:01:00.9]} 27. Kh1 {[%clk 0:01:00.3]} 27... Rxg2 {[%clk
0:01:01]} 28. Kxg2 {[%clk 0:00:53.3]} 28... Qg3+ {[%clk 0:01:00.4]} 29. Kh1
{[%clk 0:00:49.8]} 29... Qxh3+ {[%clk 0:01:00.1]} 30. Kg1 {[%clk 0:00:50.1]}
30... Be3# {[%clk 0:01:00.8]} 0-1

[Event "Late-Titled-Tuesday-Blitz-August-29-2023"]
[Site "Chess.com"]
[Date "2023.08.29"]
[Round "6"]
[White "Elsa167"]
[Black "burbur555"]
[Result "1-0"]
[WhiteElo "2881"]
[BlackElo "2576"]
[TimeControl "180+1"]
[EndTime "15:03:50 PDT"]
[Termination "Elsa167 won by resignation"]

1. d4 {[%clk 0:03:00.9]} 1... d5 {[%clk 0:02:57.5]} 2. c4 {[%clk 0:03:01.5]}
2... c6 {[%clk 0:02:57.2]} 3. cxd5 {[%clk 0:03:01.5]} 3... cxd5 {[%clk 0:02:56]}
4. Bf4 {[%clk 0:03:02]} 4... e6 {[%clk 0:02:55.4]} 5. Nc3 {[%clk 0:03:01.2]}
5... Bd6 {[%clk 0:02:55.2]} 6. Bxd6 {[%clk 0:03:01.2]} 6... Qxd6 {[%clk
0:02:55.2]} 7. e3 {[%clk 0:03:02.1]} 7... a6 {[%clk 0:02:54.7]} 8. Bd3 {[%clk
0:03:02.5]} 8... b5 {[%clk 0:02:53.9]} 9. Rc1 {[%clk 0:03:02]} 9... Nf6 {[%clk
0:02:50.8]} 10. Nxb5 {[%clk 0:02:34.9]} 10... Qb4+ {[%clk 0:02:40.6]} 11. Qd2
{[%clk 0:02:35.5]} 11... Qxd2+ {[%clk 0:02:39.4]} 12. Kxd2 {[%clk 0:02:36.4]}
12... O-O {[%clk 0:02:34.8]} 13. Nc3 {[%clk 0:02:34.1]} 13... Nbd7 {[%clk
0:02:31.3]} 14. f4 {[%clk 0:02:31.8]} 14... Nb6 {[%clk 0:02:27.5]} 15. Nf3
{[%clk 0:02:31]} 15... Bd7 {[%clk 0:02:23.9]} 16. Ne5 {[%clk 0:02:30.7]} 16...
Rfb8 {[%clk 0:02:22.4]} 17. b3 {[%clk 0:02:26]} 17... Be8 {[%clk 0:02:21.2]} 18.
g4 {[%clk 0:02:24.3]} 18... a5 {[%clk 0:02:15.2]} 19. g5 {[%clk 0:02:24.2]}
19... Nfd7 {[%clk 0:02:10.8]} 20. a4 {[%clk 0:02:11.1]} 20... Nxe5 {[%clk
0:01:53.8]} 21. dxe5 {[%clk 0:01:57.3]} 21... Nc8 {[%clk 0:01:40]} 22. Bb5
{[%clk 0:01:16.8]} 22... Kf8 {[%clk 0:01:30.9]} 23. Bxe8 {[%clk 0:01:15]} 23...
Kxe8 {[%clk 0:01:28.9]} 24. Nb5 {[%clk 0:01:15.6]} 24... Kf8 {[%clk 0:01:24.3]}
25. Rc7 {[%clk 0:01:14.6]} 25... Ne7 {[%clk 0:01:22]} 26. Rhc1 {[%clk
0:01:13.9]} 26... Rd8 {[%clk 0:01:20.8]} 27. Nd6 {[%clk 0:01:10.8]} 27... Rab8
{[%clk 0:01:19.5]} 28. R1c3 {[%clk 0:01:01.7]} 28... Rb6 {[%clk 0:01:10.9]} 29.
Ra7 {[%clk 0:00:47.3]} 29... f6 {[%clk 0:00:59.3]} 30. Rcc7 {[%clk 0:00:40.6]}
1-0

[Event "Late-Titled-Tuesday-Blitz-August-29-2023"]
[Site "Chess.com"]
[Date "2023.08.29"]
[Round "6"]
[White "ritanovikova"]
[Black "Young_Catalan_Player09"]
[Result "0-1"]
[WhiteElo "2162"]
[BlackElo "2438"]
[TimeControl "180+1"]
[EndTime "15:03:52 PDT"]
[Termination "Young_Catalan_Player09 won by checkmate"]

1. d4 {[%clk 0:03:00]} 1... e6 {[%clk 0:02:58.9]} 2. Bf4 {[%clk 0:02:59.4]} 2...
Nf6 {[%clk 0:02:58]} 3. Nf3 {[%clk 0:02:59]} 3... d5 {[%clk 0:02:57.6]} 4. c3
{[%clk 0:02:58.2]} 4... c5 {[%clk 0:02:58.2]} 5. e3 {[%clk 0:02:57.8]} 5... Nc6
{[%clk 0:02:58.6]} 6. Bb5 {[%clk 0:02:55.3]} 6... Qb6 {[%clk 0:02:51]} 7. Qb3
{[%clk 0:02:44.2]} 7... c4 {[%clk 0:02:46.8]} 8. Qa4 {[%clk 0:02:41]} 8... Bd7
{[%clk 0:02:39.4]} 9. b3 {[%clk 0:02:27.5]} 9... a6 {[%clk 0:02:37.5]} 10. bxc4
{[%clk 0:02:15.1]} 10... dxc4 {[%clk 0:02:35.6]} 11. Bxc4 {[%clk 0:02:06.2]}
11... Nxd4 {[%clk 0:02:33.3]} 12. Qd1 {[%clk 0:02:02.6]} 12... Nxf3+ {[%clk
0:02:26.8]} 13. Qxf3 {[%clk 0:01:41.6]} 13... Qb2 {[%clk 0:02:26.8]} 14. O-O
{[%clk 0:01:41]} 14... Qxa1 {[%clk 0:02:25.4]} 15. Qe2 {[%clk 0:01:27]} 15...
Bb5 {[%clk 0:02:20.3]} 16. Bxb5+ {[%clk 0:01:25.1]} 16... axb5 {[%clk
0:02:19.8]} 17. Qxb5+ {[%clk 0:01:25.8]} 17... Nd7 {[%clk 0:02:19.8]} 18. Rd1
{[%clk 0:01:25.2]} 18... O-O-O {[%clk 0:02:12]} 19. Qa4 {[%clk 0:00:46.9]} 19...
Nb6 {[%clk 0:02:00.5]} 20. Rxd8+ {[%clk 0:00:28.4]} 20... Kxd8 {[%clk
0:01:59.8]} 21. Qd1+ {[%clk 0:00:27.6]} 21... Kc8 {[%clk 0:01:50.6]} 22. Qb3
{[%clk 0:00:25.4]} 22... Bc5 {[%clk 0:01:46.8]} 23. g4 {[%clk 0:00:16.7]} 23...
Rd8 {[%clk 0:01:43.4]} 24. Kg2 {[%clk 0:00:15.9]} 24... Rd1 {[%clk 0:01:42.2]}
25. Na3 {[%clk 0:00:13.7]} 25... Rg1+ {[%clk 0:01:39.1]} 26. Kh3 {[%clk
0:00:13.3]} 26... Qd1 {[%clk 0:01:39.1]} 27. Qb2 {[%clk 0:00:04.9]} 27... Qxg4#
{[%clk 0:01:36.8]} 0-1